[Event "GER-chT Youth Countries 2020"]
[Site "Berlin"]
[Date "2020.10.02"]
[Round "4"]
[White "Mueller, Maximilian"]
[Black "Schwartz, Oliver"]
[Result "0-1"]
[ECO "B31"]
[WhiteElo "2303"]
[BlackElo "1794"]
[Annotator "ChessBase"]
[PlyCount "104"]
[EventDate "2020.09.30"]
[EventType "team-tourn"]
[EventRounds "7"]
[EventCountry "GER"]
[SourceTitle "playchess.com"]
[Source "ChessBase"]
[SourceQuality "1"]
[TimeControl "30/5400+30:0"]

1. e4 {[%emt 0:00:00]} c5 {[%emt 0:00:00]} 2. Nf3 {[%emt 0:00:00]} Nc6 {[%emt 0:00:00]} 3. Bb5 {[%emt 0:00:00]} g6 {[%emt 0:00:20]} 4. O-O {[%emt 0:00:00]} Bg7 {[%emt 0:00:14]} 5. Re1 {[%emt 0:00:17]} Nf6 {[%emt 0:01:54]} 6. e5 {[%emt 0:02:13]} Nd5 {[%emt 0:05:36]} 7. Nc3 {[%emt 0:00:05]} Nb6 {[%emt 0:00:52]} 8. a4 {[%emt 0:15:44]} a6 {[%emt 0:12:27]} 9. Bf1 {[%emt 0:02:50]} Nb4 {[%emt 0:08:08]} 10. Ne4 {[%emt 0:05:26]} O-O {[%emt 0:12:26]} 11. c3 {[%emt 0:01:27]} Nc6 {[%emt 0:02:54]} 12. Nxc5 {[%emt 0:15:49]} Nxe5 {[%emt 0:14:50]} 13. Nxe5 {[%emt 0:01:56]} d6 {[%emt 0:00:15]} 14. Ned3 {[%emt 0:03:13]} dxc5 {[%emt 0:00:36]} 15. Nxc5 {[%emt 0:00:49]} Qc7 {[%emt 0:02:06]} 16. d4 {[%emt 0:10:23]} e5 {[%emt 0:05:28]} 17. Nb3 {[%emt 0:01:48]} Rd8 {[%emt 0:02:38]} 18. Be3 {[%emt 0:00:36]} Be6 {[%emt 0:02:46]} 19. Nc5 {[%emt 0:10:40]} Qe7 {[%emt 0:10:08]} 20. a5 {[%emt 0:02:21]} Nc4 {[%emt 0:02:31]} 21. b3 {[%emt 0:02:20]} Nxe3 {[%emt 0:02:12]} 22. fxe3 {[%emt 0:00:26]} Rac8 {[%emt 0:00:43]} 23. b4 {[%emt 0:05:09]} Rc7 {[%emt 0:02:51]} 24. Qe2 {[%emt 0:06:11]} Qg5 {[%emt 0:02:00]} 25. Rad1 {[%emt 0:01:37]} Bf8 {[%emt 0:00:48]} 26. g3 {[%emt 0:03:28]} Bg4 {[%emt 0:00:16]} 27. Qf2 {[%emt 0:05:13]} Bxd1 {[%emt 0:00:10]} 28. Rxd1 {[%emt 0:01:08]} Bxc5 {[%emt 0:00:09]} 29. bxc5 {[%emt 0:00:31]} Rxc5 {[%emt 0:00:23]} 30. c4 {[%emt 0:00:47]} Rxa5 {[%emt 0:00:31]} 31. Rb1 {[%emt 1:30:26]} Ra3 {[%emt 1:32:50]} 32. Rxb7 {[%emt 0:01:33]} Qxe3 {[%emt 0:00:06]} 33. Qxe3 {[%emt 0:00:05]} Rxe3 {[%emt 0:00:02]} 34. d5 {[%emt 0:00:07]} Kf8 {[%emt 0:02:12]} 35. Bh3 {[%emt 0:01:21]} Rc3 {[%emt 0:00:23]} 36. Rc7 {[%emt 0:00:19]} a5 {[%emt 0:00:19]} 37. Bd7 {[%emt 0:00:51]} a4 {[%emt 0:00:39]} 38. Bxa4 {[%emt 0:00:43]} Rxd5 {[%emt 0:00:28]} 39. Rxf7+ {[%emt 0:00:49]} Kxf7 {[%emt 0:00:22]} 40. cxd5 {[%emt 0:00:01]} Ke7 {[%emt 0:01:03]} 41. Kf2 {[%emt 0:00:47]} Kd6 {[%emt 0:00:38]} 42. Bc6 {[%emt 0:00:37]} Rc2+ {[%emt 0:00:15]} 43. Kf3 {[%emt 0:00:00]} Rxh2 {[%emt 0:00:00]} 44. Kg4 {[%emt 0:00:00]} Rg2 {[%emt 0:00:00]} 45. Kf3 {[%emt 0:00:00]} Rc2 {[%emt 0:00:00]} 46. Bb7 {[%emt 0:00:00]} h5 {[%emt 0:00:00]} 47. Ke4 {[%emt 0:00:00]} Rc4+ {[%emt 0:00:00]} 48. Kf3 {[%emt 0:00:00]} Rd4 {[%emt 0:00:00]} 49. Bc6 {[%emt 0:00:00]} g5 {[%emt 0:00:00]} 50. Be8 {[%emt 0:00:00]} h4 {[%emt 0:00:00]} 51. gxh4 {[%emt 0:00:00]} Rxh4 {[%emt 0:00:00]} 52. Bf7 {[%emt 0:00:00]} Rf4+ {[%emt 0:00:00]} 0-1

[Event "GER-chT Youth Countries 2020"]
[Site "Berlin"]
[Date "2020.10.02"]
[Round "4"]
[White "Stelmaszyk, Nico"]
[Black "Nguyen, Huy Dat"]
[Result "1/2-1/2"]
[ECO "B40"]
[WhiteElo "2301"]
[BlackElo "2166"]
[Annotator "ChessBase"]
[PlyCount "85"]
[EventDate "2020.09.30"]
[EventType "team-tourn"]
[EventRounds "7"]
[EventCountry "GER"]
[SourceTitle "playchess.com"]
[Source "ChessBase"]
[SourceQuality "1"]
[TimeControl "30/5400+30:0"]

1. e4 {[%emt 0:00:00]} c5 {[%emt 0:00:00]} 2. Nf3 {[%emt 0:00:00]} e6 {[%emt 0:00:00]} 3. c3 {[%emt 0:00:00]} Nf6 {[%emt 0:00:02]} 4. e5 {[%emt 0:00:00]} Nd5 {[%emt 0:00:04]} 5. d4 {[%emt 0:00:00]} cxd4 {[%emt 0:00:05]} 6. cxd4 {[%emt 0:00:00]} b6 {[%emt 0:00:08]} 7. Bc4 {[%emt 0:01:24]} Bb4+ {[%emt 0:02:45]} 8. Nbd2 {[%emt 0:04:13]} Ba6 {[%emt 0:01:57]} 9. O-O {[%emt 0:04:32]} O-O {[%emt 0:11:32]} 10. Bxa6 {[%emt 0:06:48]} Nxa6 {[%emt 0:00:06]} 11. Ne4 {[%emt 0:00:17]} Nac7 {[%emt 0:15:31]} 12. Qd3 {[%emt 0:02:43]} f5 {[%emt 0:03:25]} 13. Nc3 {[%emt 0:25:08]} Be7 {[%emt 0:01:30]} 14. Bd2 {[%emt 0:02:41]} Kh8 {[%emt 0:02:00]} 15. Ne1 {[%emt 0:01:25]} Bg5 {[%emt 0:03:45]} 16. Nc2 {[%emt 0:07:26]} f4 {[%emt 0:03:29]} 17. Ne4 {[%emt 0:02:04]} Bh6 {[%emt 0:01:12]} 18. f3 {[%emt 0:02:16]} Qh4 {[%emt 0:04:32]} 19. Be1 {[%emt 0:13:06]} Qh5 {[%emt 0:00:45]} 20. Bf2 {[%emt 0:07:10]} g5 {[%emt 0:07:24]} 21. h3 {[%emt 0:02:21]} Rg8 {[%emt 0:03:38]} 22. Na3 {[%emt 0:03:05]} Qg6 {[%emt 0:08:26]} 23. Nc4 {[%emt 0:03:41]} Bf8 {[%emt 0:01:33]} 24. Rfd1 {[%emt 0:03:47]} Be7 {[%emt 0:02:02]} 25. Kf1 {[%emt 0:01:17]} h5 {[%emt 0:03:59]} 26. Ke2 {[%emt 0:00:25]} Ne8 {[%emt 0:08:45]} 27. Nc3 {[%emt 0:01:04]} Qxd3+ {[%emt 0:01:07]} 28. Rxd3 {[%emt 0:00:10]} Nb4 {[%emt 0:01:18]} 29. Rdd1 {[%emt 0:01:04]} Rc8 {[%emt 0:02:13]} 30. Nd2 {[%emt 0:01:20]} d5 {[%emt 0:01:27]} 31. exd6 {[%emt 1:32:10]} Nxd6 {[%emt 1:32:20]} 32. Rac1 {[%emt 0:00:47]} Nf5 {[%emt 0:01:36]} 33. Nde4 {[%emt 0:00:21]} Rge8 {[%emt 0:02:19]} 34. g4 {[%emt 0:01:20]} hxg4 {[%emt 0:03:06]} 35. hxg4 {[%emt 0:00:10]} Nd6 {[%emt 0:00:04]} 36. Rh1+ {[%emt 0:00:52]} Kg7 {[%emt 0:00:06]} 37. Nxd6 {[%emt 0:00:57]} Bxd6 {[%emt 0:00:05]} 38. Rh5 {[%emt 0:00:58]} Be7 {[%emt 0:00:35]} 39. Rch1 {[%emt 0:00:39]} Rh8 {[%emt 0:01:06]} 40. Rxh8 {[%emt 0:00:14]} Rxh8 {[%emt 0:00:08]} 41. Rxh8 {[%emt 0:00:10]} Kxh8 {[%emt 0:00:04]} 42. a3 {[%emt 0:00:33]} Nd5 {[%emt 0:00:47]} 43. Nxd5 {[%emt 0:00:37]} 1/2-1/2

[Event "GER-chT Youth Countries 2020"]
[Site "Berlin"]
[Date "2020.10.02"]
[Round "4"]
[White "Arndt, Magnus"]
[Black "Faerber, David"]
[Result "1/2-1/2"]
[ECO "A45"]
[WhiteElo "2298"]
[BlackElo "2321"]
[Annotator "ChessBase"]
[PlyCount "93"]
[EventDate "2020.09.30"]
[EventType "team-tourn"]
[EventRounds "7"]
[EventCountry "GER"]
[SourceTitle "playchess.com"]
[Source "ChessBase"]
[SourceQuality "1"]
[TimeControl "30/5400+30:0"]

1. d4 {[%emt 0:00:00]} Nf6 {[%emt 0:00:53]} 2. Bf4 {[%emt 0:00:00]} c5 {[%emt 0:00:08]} 3. dxc5 {[%emt 0:00:00]} Na6 {[%emt 0:00:21]} 4. Qd4 {[%emt 0:00:19]} Qa5+ {[%emt 0:00:24]} 5. Nc3 {[%emt 0:00:36]} Qxc5 {[%emt 0:08:10]} 6. e3 {[%emt 0:01:37]} Qxd4 {[%emt 0:15:06]} 7. exd4 {[%emt 0:00:19]} Nb4 {[%emt 0:00:07]} 8. O-O-O {[%emt 0:06:13]} a6 {[%emt 0:03:25]} 9. d5 {[%emt 0:21:52]} e6 {[%emt 0:03:04]} 10. d6 {[%emt 0:06:57]} b5 {[%emt 0:05:59]} 11. Nf3 {[%emt 0:07:20]} Bb7 {[%emt 0:02:45]} 12. Be2 {[%emt 0:01:16]} Rc8 {[%emt 0:04:29]} 13. a3 {[%emt 0:13:08]} Nfd5 {[%emt 0:07:03]} 14. Nxd5 {[%emt 0:12:51]} Nxd5 {[%emt 0:05:17]} 15. Bg3 {[%emt 0:01:34]} g6 {[%emt 0:08:05]} 16. Nd2 {[%emt 0:06:37]} Bh6 {[%emt 0:11:25]} 17. Bf3 {[%emt 0:03:38]} f6 {[%emt 0:02:29]} 18. Kb1 {[%emt 0:02:22]} Kf7 {[%emt 0:01:05]} 19. Nb3 {[%emt 0:02:18]} Ba8 {[%emt 0:01:58]} 20. Rd4 {[%emt 0:03:56]} Bg7 {[%emt 0:00:53]} 21. Re1 {[%emt 0:01:25]} Rhe8 {[%emt 0:01:36]} 22. a4 {[%emt 0:02:16]} Bf8 {[%emt 0:05:35]} 23. axb5 {[%emt 0:00:44]} axb5 {[%emt 0:00:26]} 24. Rdd1 {[%emt 0:01:05]} Red8 {[%emt 0:04:27]} 25. Nd4 {[%emt 0:00:59]} Rb8 {[%emt 0:00:32]} 26. h4 {[%emt 0:01:42]} Rb6 {[%emt 0:00:58]} 27. h5 {[%emt 0:00:39]} Bxd6 {[%emt 0:03:47]} 28. Bxd6 {[%emt 0:00:24]} Rxd6 {[%emt 0:00:05]} 29. Nxb5 {[%emt 0:00:53]} Rb6 {[%emt 0:02:05]} 30. c4 {[%emt 0:00:10]} Rdb8 {[%emt 0:01:30]} 31. cxd5 {[%emt 1:31:58]} Rxb5 {[%emt 1:30:06]} 32. dxe6+ {[%emt 0:00:00]} dxe6 {[%emt 0:00:04]} 33. Bxa8 {[%emt 0:00:00]} Rxa8 {[%emt 0:01:35]} 34. Rd7+ {[%emt 0:00:05]} Kg8 {[%emt 0:00:18]} 35. hxg6 {[%emt 0:00:17]} hxg6 {[%emt 0:00:02]} 36. Rxe6 {[%emt 0:00:12]} Rab8 {[%emt 0:00:36]} 37. Re2 {[%emt 0:00:13]} R5b6 {[%emt 0:00:38]} 38. Rc7 {[%emt 0:01:02]} g5 {[%emt 0:00:34]} 39. Rec2 {[%emt 0:00:46]} Rb4 {[%emt 0:00:14]} 40. Rc8+ {[%emt 0:01:04]} Rxc8 {[%emt 0:00:37]} 41. Rxc8+ {[%emt 0:00:17]} Kf7 {[%emt 0:00:05]} 42. Rc3 {[%emt 0:00:00]} Rf4 {[%emt 0:00:00]} 43. Rc2 {[%emt 0:00:00]} Ke6 {[%emt 0:00:00]} 44. Rd2 {[%emt 0:00:00]} Rg4 {[%emt 0:00:00]} 45. f3 {[%emt 0:00:00]} Rb4 {[%emt 0:00:00]} 46. Kc2 {[%emt 0:00:00]} Rb8 {[%emt 0:00:00]} 47. Rd4 {[%emt 0:00:00]} 1/2-1/2

[Event "GER-chT Youth Countries 2020"]
[Site "Berlin"]
[Date "2020.10.02"]
[Round "4"]
[White "Pubantz, Jan"]
[Black "Weishaeutel, Moritz"]
[Result "1-0"]
[ECO "A58"]
[WhiteElo "2295"]
[BlackElo "2222"]
[Annotator "ChessBase"]
[PlyCount "51"]
[EventDate "2020.09.30"]
[EventType "team-tourn"]
[EventRounds "7"]
[EventCountry "GER"]
[SourceTitle "playchess.com"]
[Source "ChessBase"]
[SourceQuality "1"]
[TimeControl "30/5400+30:0"]

1. d4 Nf6 {[%emt 0:00:00]} 2. c4 {[%emt 0:00:00]} c5 {[%emt 0:00:00]} 3. d5 b5 4. cxb5 {[%emt 0:00:04]} a6 {[%emt 0:00:00]} 5. bxa6 {[%emt 0:00:06]} g6 {[%emt 0:00:00]} 6. Nc3 {[%emt 0:00:04]} Bg7 {[%emt 0:00:00]} 7. e4 {[%emt 0:01:17]} O-O {[%emt 0:00:09]} 8. Nf3 {[%emt 0:01:03]} Qa5 {[%emt 0:00:30]} 9. Nd2 {[%emt 0:04:18]} Bxa6 {[%emt 0:01:33]} 10. Be2 {[%emt 0:01:29]} d6 {[%emt 0:05:51]} 11. a4 {[%emt 0:01:51]} Nbd7 {[%emt 0:00:12]} 12. O-O {[%emt 0:06:40]} Rfb8 {[%emt 0:03:30]} 13. Ra3 {[%emt 0:03:40]} Ne8 {[%emt 0:08:48]} 14. Nb5 {[%emt 0:14:00]} Qd8 {[%emt 0:04:19]} 15. b3 Nc7 {[%emt 0:00:02]} 16. Nxc7 {[%emt 0:03:13]} Qxc7 {[%emt 0:00:01]} 17. Bxa6 {[%emt 0:02:27]} Rxa6 {[%emt 0:08:36]} 18. Nc4 {[%emt 0:06:27]} Ne5 {[%emt 0:04:12]} 19. Qc2 {[%emt 0:01:56]} Nxc4 {[%emt 0:03:10]} 20. Qxc4 {[%emt 0:05:28]} Rab6 {[%emt 0:02:55]} 21. a5 {[%emt 0:02:10]} Rb4 {[%emt 0:13:22]} 22. Qc2 {[%emt 0:04:14]} Qb7 {[%emt 0:02:13]} 23. Bd2 Rxb3 {[%emt 0:00:17]} 24. a6 {[%emt 0:01:56]} Qb5 25. Rxb3 {[%emt 0:00:23]} Qxb3 {[%emt 0:00:41]} 26. a7 1-0

[Event "GER-chT Youth Countries 2020"]
[Site "Berlin"]
[Date "2020.10.02"]
[Round "4"]
[White "Schmider, Niklas"]
[Black "Popvasilev, Kaloyan"]
[Result "1-0"]
[ECO "B67"]
[WhiteElo "2291"]
[BlackElo "2145"]
[Annotator "ChessBase"]
[PlyCount "83"]
[EventDate "2020.09.30"]
[EventType "team-tourn"]
[EventRounds "7"]
[EventCountry "GER"]
[SourceTitle "playchess.com"]
[Source "ChessBase"]
[SourceQuality "1"]
[TimeControl "30/5400+30:0"]

1. e4 {[%emt 0:00:00]} c5 {[%emt 0:00:00]} 2. Nf3 {[%emt 0:00:24]} d6 {[%emt 0:00:00]} 3. d4 {[%emt 0:00:04]} Nf6 {[%emt 0:00:00]} 4. Nc3 {[%emt 0:00:05]} cxd4 {[%emt 0:00:00]} 5. Nxd4 {[%emt 0:00:05]} Nc6 {[%emt 0:00:00]} 6. Bg5 {[%emt 0:00:06]} e6 {[%emt 0:00:56]} 7. Qd2 {[%emt 0:06:34]} a6 {[%emt 0:00:11]} 8. O-O-O {[%emt 0:00:38]} Bd7 {[%emt 0:00:11]} 9. f4 {[%emt 0:00:21]} b5 {[%emt 0:00:13]} 10. Bxf6 {[%emt 0:02:23]} gxf6 {[%emt 0:00:41]} 11. Kb1 {[%emt 0:04:35]} Qb6 {[%emt 0:00:40]} 12. Nxc6 {[%emt 0:00:24]} Bxc6 {[%emt 0:00:11]} 13. Qe1 {[%emt 0:00:13]} Ra7 {[%emt 0:04:33]} 14. f5 {[%emt 0:04:48]} h5 {[%emt 0:13:43]} 15. fxe6 {[%emt 0:05:13]} fxe6 {[%emt 0:00:11]} 16. Bd3 {[%emt 0:01:11]} Qc5 {[%emt 0:16:20]} 17. Rf1 {[%emt 0:04:57]} Qe5 {[%emt 0:15:55]} 18. Qf2 {[%emt 0:01:36]} Rb7 {[%emt 0:01:17]} 19. Nd5 {[%emt 0:15:42]} Bg7 {[%emt 0:03:14]} 20. Nf4 {[%emt 0:08:05]} Kf7 {[%emt 0:04:16]} 21. c3 {[%emt 0:08:24]} a5 {[%emt 0:13:36]} 22. Bc2 {[%emt 0:09:50]} b4 {[%emt 0:04:18]} 23. Nd3 {[%emt 0:02:44]} Qb5 {[%emt 0:06:19]} 24. cxb4 {[%emt 0:06:14]} Bxe4 {[%emt 0:05:20]} 25. Qg3 {[%emt 0:12:14]} f5 {[%emt 0:04:47]} 26. Qxd6 {[%emt 0:04:11]} axb4 {[%emt 0:02:32]} 27. Nc5 {[%emt 0:01:03]} Bxc2+ {[%emt 0:00:40]} 28. Kxc2 {[%emt 0:00:06]} Qc4+ {[%emt 0:00:53]} 29. Kb1 {[%emt 0:00:31]} Ra7 {[%emt 0:01:25]} 30. b3 {[%emt 0:01:10]} Qe2 {[%emt 0:00:13]} 31. Rf2 {[%emt 1:30:19]} Qe3 {[%emt 1:32:07]} 32. Nd3 {[%emt 0:01:06]} Re8 {[%emt 0:00:40]} 33. Re1 {[%emt 0:00:36]} Qd4 {[%emt 0:00:24]} 34. Qxd4 {[%emt 0:00:26]} Bxd4 {[%emt 0:00:04]} 35. Rf4 {[%emt 0:00:09]} Bc3 {[%emt 0:00:13]} 36. Re2 {[%emt 0:00:31]} Rb7 {[%emt 0:01:05]} 37. Nc5 {[%emt 0:00:14]} Rb5 {[%emt 0:00:31]} 38. Rc4 {[%emt 0:01:12]} e5 {[%emt 0:00:30]} 39. a4 {[%emt 0:00:19]} Rbb8 {[%emt 0:00:40]} 40. Rf2 {[%emt 0:00:42]} Kg6 {[%emt 0:00:27]} 41. Nd7 {[%emt 0:00:00]} Rbd8 {[%emt 0:00:00]} 42. Rc6+ {[%emt 0:00:00]} 1-0

[Event "GER-chT Youth Countries 2020"]
[Site "Berlin"]
[Date "2020.10.02"]
[Round "4"]
[White "Kuznecovs, Nikita"]
[Black "Knuedel, Torben"]
[Result "1-0"]
[ECO "C52"]
[WhiteElo "2276"]
[BlackElo "2211"]
[Annotator "ChessBase"]
[PlyCount "67"]
[EventDate "2020.09.30"]
[EventType "team-tourn"]
[EventRounds "7"]
[EventCountry "GER"]
[SourceTitle "playchess.com"]
[Source "ChessBase"]
[SourceQuality "1"]
[TimeControl "30/5400+30:0"]

1. e4 {[%emt 0:00:00]} e5 {[%emt 0:00:00]} 2. Nf3 {[%emt 0:00:00]} Nc6 {[%emt 0:00:00]} 3. Bc4 {[%emt 0:00:00]} Bc5 {[%emt 0:00:00]} 4. b4 {[%emt 0:00:16]} Bxb4 {[%emt 0:00:00]} 5. c3 {[%emt 0:00:06]} Ba5 {[%emt 0:00:00]} 6. d4 {[%emt 0:00:06]} d6 {[%emt 0:00:01]} 7. Qb3 {[%emt 0:00:10]} Qd7 {[%emt 0:01:19]} 8. O-O {[%emt 0:00:00]} Bb6 {[%emt 0:00:30]} 9. Nbd2 Na5 {[%emt 0:05:43]} 10. Qb1 {[%emt 0:00:25]} Nxc4 {[%emt 0:00:17]} 11. Nxc4 {[%emt 0:11:42]} Qe6 {[%emt 0:13:21]} 12. Qd3 {[%emt 0:00:36]} Bd7 {[%emt 0:09:44]} 13. a4 {[%emt 0:11:27]} a6 14. Rb1 {[%emt 0:00:14]} Bxa4 {[%emt 0:25:38]} 15. Rxb6 Bb5 16. Rxb5 {[%emt 0:09:03]} axb5 {[%emt 0:00:15]} 17. Ne3 {[%emt 0:08:41]} Nf6 18. dxe5 dxe5 {[%emt 0:07:08]} 19. Qxb5+ {[%emt 0:00:42]} c6 {[%emt 0:00:27]} 20. Qb4 Qe7 {[%emt 0:06:49]} 21. Qxe7+ {[%emt 0:02:14]} Kxe7 {[%emt 0:00:01]} 22. Nf5+ {[%emt 0:00:12]} Kf8 23. Nxe5 {[%emt 0:17:11]} Nxe4 {[%emt 0:04:01]} 24. Re1 {[%emt 0:00:00]} Ra1 {[%emt 0:01:46]} 25. g4 {[%emt 0:13:42]} h5 {[%emt 0:10:40]} 26. Kg2 {[%emt 0:00:33]} Nc5 {[%emt 0:04:08]} 27. Nd6 {[%emt 0:08:31]} g5 {[%emt 0:02:38]} 28. c4 Rb1 {[%emt 0:00:37]} 29. Nexf7 {[%emt 0:02:31]} Nd3 {[%emt 0:00:05]} 30. Re8+ {[%emt 0:00:40]} Kg7 31. Rxh8 {[%emt 1:31:36]} Rxc1 {[%emt 1:30:46]} 32. gxh5 {[%emt 0:01:11]} Rc3 {[%emt 0:00:12]} 33. h6+ Kf6 {[%emt 0:00:27]} 34. Ne4+ {[%emt 0:00:46]} 1-0

[Event "GER-chT Youth Countries 2020"]
[Site "Berlin"]
[Date "2020.10.02"]
[Round "4"]
[White "Koelle, Tobias"]
[Black "Chassard, Cedric"]
[Result "1-0"]
[ECO "D37"]
[WhiteElo "2275"]
[BlackElo "1916"]
[Annotator "ChessBase"]
[PlyCount "39"]
[EventDate "2020.09.30"]
[EventType "team-tourn"]
[EventRounds "7"]
[EventCountry "GER"]
[SourceTitle "playchess.com"]
[Source "ChessBase"]
[SourceQuality "1"]
[TimeControl "30/5400+30:0"]

1. d4 {[%emt 0:00:00]} Nf6 {[%emt 0:00:00]} 2. c4 {[%emt 0:00:00]} e6 {[%emt 0:00:00]} 3. Nf3 {[%emt 0:00:00]} d5 {[%emt 0:00:00]} 4. Nc3 {[%emt 0:00:35]} dxc4 {[%emt 0:00:00]} 5. e4 {[%emt 0:00:14]} Bb4 {[%emt 0:00:00]} 6. Bxc4 {[%emt 0:00:09]} Nxe4 {[%emt 0:00:00]} 7. O-O {[%emt 0:00:05]} Nxc3 {[%emt 0:00:12]} 8. bxc3 {[%emt 0:00:06]} Be7 {[%emt 0:00:13]} 9. Ne5 {[%emt 0:00:05]} Nd7 {[%emt 0:00:20]} 10. Qg4 {[%emt 0:00:27]} O-O {[%emt 0:01:43]} 11. Re1 {[%emt 0:03:57]} Bf6 {[%emt 0:04:23]} 12. Ba3 {[%emt 0:01:58]} Be7 {[%emt 0:22:49]} 13. Nxf7 {[%emt 0:08:58]} Rxf7 {[%emt 0:00:35]} 14. Qxe6 {[%emt 0:00:06]} Ne5 {[%emt 0:01:01]} 15. Qxe5 {[%emt 0:00:06]} Bxa3 {[%emt 0:00:17]} 16. Qe8+ {[%emt 0:01:31]} Qxe8 {[%emt 0:00:09]} 17. Rxe8+ {[%emt 0:00:02]} Bf8 {[%emt 0:00:01]} 18. Rae1 {[%emt 0:01:51]} b5 {[%emt 0:03:35]} 19. Bb3 {[%emt 0:00:10]} c5 {[%emt 0:17:15]} 20. dxc5 {[%emt 0:00:13]} 1-0

[Event "GER-chT Youth Countries 2020"]
[Site "Berlin"]
[Date "2020.10.02"]
[Round "4"]
[White "Goldbeck, Lars"]
[Black "Vogel, Roven"]
[Result "0-1"]
[ECO "D31"]
[WhiteElo "2273"]
[BlackElo "2456"]
[Annotator "ChessBase"]
[PlyCount "52"]
[EventDate "2020.09.30"]
[EventType "team-tourn"]
[EventRounds "7"]
[EventCountry "GER"]
[SourceTitle "playchess.com"]
[Source "ChessBase"]
[SourceQuality "1"]
[TimeControl "30/5400+30:0"]

1. d4 {[%emt 0:00:00]} d5 {[%emt 0:00:00]} 2. c4 {[%emt 0:00:00]} e6 {[%emt 0:00:04]} 3. Nc3 {[%emt 0:00:00]} Be7 {[%emt 0:00:17]} 4. Qc2 {[%emt 0:00:00]} Nf6 {[%emt 0:00:18]} 5. cxd5 {[%emt 0:00:00]} exd5 {[%emt 0:02:44]} 6. Bf4 {[%emt 0:02:14]} O-O {[%emt 0:05:30]} 7. e3 {[%emt 0:01:02]} c5 {[%emt 0:00:36]} 8. Nf3 {[%emt 0:03:58]} Nc6 {[%emt 0:07:38]} 9. Rd1 {[%emt 0:07:26]} c4 {[%emt 0:03:03]} 10. h3 {[%emt 0:05:11]} Nb4 {[%emt 0:09:52]} 11. Qb1 {[%emt 0:00:02]} g6 {[%emt 0:00:14]} 12. g4 {[%emt 0:00:50]} Ne4 {[%emt 0:02:27]} 13. Nxe4 {[%emt 0:04:31]} dxe4 {[%emt 0:00:27]} 14. Qxe4 {[%emt 0:14:01]} Be6 {[%emt 0:00:50]} 15. Qe5 {[%emt 0:13:59]} Bd5 {[%emt 0:10:26]} 16. Bh6 {[%emt 0:09:05]} f6 {[%emt 0:02:38]} 17. Qg3 {[%emt 0:01:46]} Bd6 {[%emt 0:03:41]} 18. Qg2 {[%emt 0:00:02]} Qa5 {[%emt 0:03:02]} 19. Be2 {[%emt 0:02:18]} Nd3+ {[%emt 0:02:29]} 20. Kf1 {[%emt 0:00:01]} Nxb2 {[%emt 0:00:24]} 21. Rc1 {[%emt 0:05:03]} Nd3 {[%emt 0:02:20]} 22. Rd1 {[%emt 0:01:26]} Qxa2 {[%emt 0:02:59]} 23. h4 {[%emt 0:00:37]} Rf7 {[%emt 0:03:23]} 24. g5 {[%emt 0:00:50]} f5 {[%emt 0:01:34]} 25. h5 {[%emt 0:00:01]} Re8 {[%emt 0:01:08]} 26. Qh3 {[%emt 0:05:28]} Nf4 {[%emt 0:00:51]} 0-1

[Event "GER-chT Youth Countries 2020"]
[Site "Berlin"]
[Date "2020.10.02"]
[Round "4"]
[White "Kolb, Tobias"]
[Black "Dahl, Christoph"]
[Result "1-0"]
[ECO "E81"]
[WhiteElo "2268"]
[BlackElo "2262"]
[Annotator "ChessBase"]
[PlyCount "74"]
[EventDate "2020.09.30"]
[EventType "team-tourn"]
[EventRounds "7"]
[EventCountry "GER"]
[SourceTitle "playchess.com"]
[Source "ChessBase"]
[SourceQuality "1"]
[TimeControl "30/5400+30:0"]

1. d4 {[%emt 0:00:00]} Nf6 {[%emt 0:00:00]} 2. c4 {[%emt 0:00:00]} g6 {[%emt 0:00:00]} 3. Nc3 {[%emt 0:00:00]} Bg7 {[%emt 0:00:19]} 4. e4 {[%emt 0:00:26]} d6 {[%emt 0:00:49]} 5. f3 {[%emt 0:02:01]} O-O {[%emt 0:00:59]} 6. Be3 {[%emt 0:00:27]} c5 {[%emt 0:01:13]} 7. dxc5 {[%emt 0:03:37]} dxc5 {[%emt 0:00:27]} 8. Qxd8 {[%emt 0:00:43]} Rxd8 {[%emt 0:00:04]} 9. Bxc5 {[%emt 0:00:06]} Nc6 {[%emt 0:02:06]} 10. Nge2 {[%emt 0:00:54]} Nd7 {[%emt 0:01:25]} 11. Be3 {[%emt 0:00:27]} Nde5 {[%emt 0:00:58]} 12. Nf4 {[%emt 0:00:32]} Nb4 {[%emt 0:01:52]} 13. Rc1 {[%emt 0:01:12]} g5 {[%emt 0:04:55]} 14. Nfd5 {[%emt 0:02:12]} Ned3+ {[%emt 0:01:15]} 15. Bxd3 {[%emt 0:00:32]} Nxd3+ {[%emt 0:00:06]} 16. Ke2 {[%emt 0:00:05]} Nxc1+ {[%emt 0:01:03]} 17. Rxc1 {[%emt 0:00:04]} Be6 {[%emt 0:02:29]} 18. Bxg5 {[%emt 0:10:32]} Rd7 {[%emt 0:03:06]} 19. Nxe7+ {[%emt 0:09:35]} Kf8 {[%emt 0:00:56]} 20. Ned5 {[%emt 0:02:15]} Rc8 {[%emt 0:01:38]} 21. b3 {[%emt 0:02:46]} Rc5 {[%emt 0:06:52]} 22. Be3 {[%emt 0:01:54]} Rc6 {[%emt 0:01:30]} 23. f4 {[%emt 0:12:21]} Bxc3 {[%emt 0:01:35]} 24. Nxc3 {[%emt 0:00:50]} f5 {[%emt 0:00:13]} 25. h3 {[%emt 0:11:50]} h5 {[%emt 0:04:14]} 26. Kf3 {[%emt 0:02:28]} Rd3 {[%emt 0:04:29]} 27. Nd5 {[%emt 0:04:24]} a5 {[%emt 0:00:14]} 28. g4 {[%emt 0:03:55]} Rc8 {[%emt 0:02:17]} 29. Nb6 {[%emt 0:04:07]} Re8 {[%emt 0:02:25]} 30. gxf5 {[%emt 0:03:27]} Bxf5 {[%emt 0:00:13]} 31. e5 {[%emt 1:30:04]} Red8 {[%emt 1:33:10]} 32. Nd5 {[%emt 0:01:13]} a4 {[%emt 0:02:11]} 33. Rg1 {[%emt 0:05:49]} axb3 {[%emt 0:00:32]} 34. axb3 {[%emt 0:00:03]} Bxh3 {[%emt 0:01:31]} 35. Ke4 {[%emt 0:01:03]} Rxb3 {[%emt 0:00:28]} 36. Bc5+ {[%emt 0:01:17]} Kf7 {[%emt 0:01:20]} 37. f5 {[%emt 0:01:48]} Re8 {[%emt 0:00:48]} 1-0